bitfinex/quotes_SOLUSD_20230112
["timestamp","ask_amount","ask_price","bid_price","bid_amount"]
[1673531034028,20.0,16.033,16.007,0.002676]
[1673531034374,71.01282,16.032,16.007,0.002676]
[1673531034568,27.22282,16.031,16.007,0.002676]
[1673531034753,63.79,16.03,16.007,0.002676]
[1673531034964,7.22282,16.029,16.007,0.002676]
[1673531035187,46.8,16.028,16.007,0.002676]
[1673531035394,17.0,16.027,16.007,0.002676]
[1673531035607,87.77,16.026,16.007,0.002676]
[1673531035929,17.0,16.025,16.007,0.002676]
[1673531036245,47.77,16.024,16.007,0.002676]
[1673531036458,44.22282,16.023,15.99,109.57]
[1673531036647,44.22282,16.023,16.001,15.02270016]
[1673531036648,48.0318488,16.022,16.001,15.02270016]
[1673531036862,20.0,16.021,16.001,15.02270016]
[1673531037283,63.82,16.02,16.001,15.02270016]
[1673531037493,20.0,16.019,16.001,15.02270016]
[1673531037717,20.0,16.021,16.001,39.99980116]
[1673531037915,20.0,16.021,16.001,24.977101]
[1673531038142,20.0,16.021,16.002,15.02270016]
[1673531039093,1.92,16.02,16.003,20.0]
[1673531039309,46.83,16.019,16.002,20.0]
[1673531039516,20.0,16.018,16.002,20.0]
[1673531039838,47.79,16.017,16.002,20.0]
[1673531040242,20.96,16.016,16.002,20.0]
[1673531040659,0.96,16.015,16.002,20.0]
[1673531040882,0.96,16.014,16.002,20.0]
[1673531041296,20.0,16.018,16.002,20.0]
[1673531041518,20.0,16.019,16.002,20.0]
[1673531041925,20.0,16.019,16.003,1.92]
[1673531042452,20.0,16.023,16.003,1.92]
[1673531042453,46.8,16.027,16.004,15.02270016]
[1673531042656,136.0236,16.029,16.005,20.0]
[1673531043077,46.8,16.027,16.006,0.96]
[1673531043306,20.0,16.026,16.007,0.96]
[1673531043508,46.81,16.025,16.007,0.96]
[1673531043937,20.0,16.024,16.002,20.0]
[1673531044146,63.82,16.023,16.003,0.96]
[1673531044334,20.0,16.022,16.004,0.96]
[1673531044990,20.0,16.024,16.005,0.96]
[1673531045198,46.81,16.026,16.004,15.02270016]
[1673531045511,46.79,16.031,16.006,35.02270016]
[1673531045707,46.78,16.034,16.007,21.92]
[1673531046361,20.0,16.03,16.007,21.92]
[1673531046881,64.10234128,16.037,16.01,21.85]
[1673531046882,46.78,16.034,16.01,21.85]
[1673531047069,44.957374,16.037,16.011,0.96]
[1673531047070,65.92496728,16.036,16.011,0.96]
[1673531047282,65.92496728,16.036,16.012,0.96]
[1673531047283,20.0,16.035,16.012,0.96]
[1673531047508,46.78,16.034,16.007,20.0]
[1673531047700,46.78,16.034,16.008,0.96]
[1673531047920,46.77,16.037,16.009,0.96]
[1673531048136,162.7936,16.038,16.01,116.85703]
[1673531048340,20.0,16.037,16.011,29.12658]
[1673531048548,20.0,16.037,16.012,7.20613]
[1673531048750,20.0,16.037,16.013,0.96]
[1673531048965,162.7936,16.038,16.011,20.96]
[1673531049167,116.0236,16.038,16.013,15.02270016]
[1673531049396,19.0,16.037,16.014,20.96]
[1673531049610,46.78,16.036,16.014,20.96]
[1673531049826,46.78,16.036,16.015,15.02270016]
[1673531050216,46.78,16.036,16.003,64.36324346]
[1673531050217,17.96,16.035,16.016,20.0]
[1673531050452,74.00282,16.034,16.001,24.977101]
[1673531050666,74.00282,16.034,16.011,15.02270016]
[1673531050873,24.22282,16.033,16.001,57.15872273]
[1673531051081,47.75,16.032,16.001,57.15872273]
[1673531051272,37.0,16.031,16.002,15.02270016]
[1673531051488,47.75,16.03,16.002,15.02270016]
[1673531051697,37.0,16.029,16.001,24.977101]
[1673531051906,54.02282,16.028,16.002,15.02270016]
[1673531052130,7.22282,16.027,16.002,15.02270016]
[1673531052321,37.96,16.026,16.003,20.0]
[1673531052535,46.81,16.025,16.002,15.02270016]
[1673531052753,0.96,16.024,16.004,15.02270016]
[1673531052964,46.82,16.023,16.004,15.02270016]
[1673531053392,20.96,16.022,16.004,15.02270016]
[1673531053922,47.78,16.021,16.002,32.18162173]
[1673531054134,20.96,16.02,16.002,47.20432189]
[1673531054445,0.96,16.019,16.002,47.20432189]
[1673531054758,46.82,16.021,16.004,32.18162173]
[1673531054970,46.81,16.025,16.004,32.18162173]
[1673531055170,46.81,16.025,16.005,48.16432189]
[1673531055368,46.81,16.025,16.009,32.18162173]
[1673531055580,46.79,16.03,16.011,32.18162173]
[1673531055794,46.79,16.033,16.012,21.92]
[1673531056118,46.79,16.033,16.012,35.02270016]
[1673531056326,66.8,16.028,16.012,35.02270016]
[1673531056530,20.0,16.028,16.012,20.0]
[1673531056747,20.0,16.028,16.009,15.02270016]
[1673531057075,20.0,16.028,16.007,20.0]
[1673531057285,20.0,16.026,15.999,32.18162173]
[1673531057593,54.03282,16.025,16.005,15.02270016]
[1673531057803,7.22282,16.024,15.999,32.18162173]
[1673531058020,20.0,16.019,15.998,15.02270016]
[1673531058204,74.05282,16.018,15.998,15.02270016]
[1673531058415,7.22282,16.017,15.998,15.02270016]
[1673531058628,0.96,16.016,16.002,32.18162173]
[1673531058854,46.81,16.024,16.002,32.18162173]
[1673531059066,46.81,16.024,15.996,153.71531392]
[1673531059067,46.81,16.024,16.003,15.02270016]
[1673531059260,20.0,16.023,16.003,47.20432189]
[1673531059469,46.82,16.022,16.004,20.0]
[1673531059678,54.04282,16.022,16.004,35.02270016]
[1673531059889,20.0,16.021,16.004,15.02270016]
[1673531060104,74.04282,16.02,15.996,57.17044873]
[1673531060328,45.18282,16.019,15.996,24.988827]
[1673531060531,66.83,16.018,15.996,24.988827]
[1673531060734,18.92,16.017,15.997,15.02270016]
[1673531060943,54.06282,16.016,15.997,15.02270016]
[1673531061153,20.0,16.014,15.997,15.02270016]
[1673531061365,17.96,16.013,15.997,15.02270016]
[1673531061901,20.0,16.012,15.997,15.02270016]
[1673531062306,0.96,16.011,15.997,15.02270016]
[1673531062942,0.96,16.01,15.997,15.02270016]
[1673531063356,0.96,16.009,15.997,15.02270016]
[1673531063788,20.96,16.01,15.997,15.02270016]
[1673531064116,0.96,16.008,15.997,15.02270016]
[1673531064323,0.96,16.007,15.997,15.02270016]
[1673531064554,0.96,16.007,15.996,24.988827]
[1673531064770,17.0,16.009,15.996,24.988827]
[1673531064963,0.96,16.006,15.996,0.008827]
[1673531065167,48.59574535,16.005,15.983,32.18162173]
[1673531065504,20.96,16.004,15.985,32.18162173]
[1673531065816,1.72574535,16.003,15.984,15.02270016]
[1673531066039,1.72574535,16.003,15.986,30.04540032]
[1673531066227,0.96,16.002,15.986,15.02270016]
[1673531066554,17.0,16.003,15.983,25.002744]
[1673531066743,0.96,16.001,15.984,15.02270016]
[1673531066959,0.96,16.0,15.984,15.02270016]
[1673531067279,0.96,16.001,15.984,15.02270016]
[1673531067480,1.3925497,16.0,15.984,15.02270016]
[1673531067688,1.3925497,16.0,15.983,25.002744]
[1673531067689,23.3225497,16.0,15.983,25.002744]
[1673531067898,23.3225497,16.0,15.97,23.25]
[1673531067899,1.82201454,15.998,15.97,23.25]
[1673531068107,20.0,15.996,15.97,23.25]
[1673531068318,2.1027725,15.994,15.974,15.02270016]
[1673531068741,2.1027725,15.992,15.974,15.02270016]
[1673531068968,2.1027725,15.99,15.97,48.272147]
[1673531069183,2.1027725,15.99,15.971,15.02270016]
[1673531069372,0.96,15.989,15.971,15.02270016]
[1673531069577,0.96,15.989,15.97,48.272147]
[1673531069789,0.96,15.988,15.971,15.02270016]
[1673531069999,0.96,15.987,15.97,48.272147]
[1673531070421,0.96,15.986,15.971,15.02270016]
[1673531070648,0.96,15.985,15.971,15.02270016]
[1673531070846,0.96,15.984,15.971,15.02270016]
[1673531071052,0.96,15.984,15.972,20.0]
[1673531071273,0.96,15.983,15.972,20.0]
[1673531071697,0.96,15.983,15.971,15.02270016]
[1673531072028,0.96,15.983,15.97,0.002147]
[1673531072336,0.96,15.983,15.956,106.43568766]
[1673531072337,0.96,15.983,15.964,15.02270016]
[1673531072529,20.0,15.986,15.969,15.02270016]
[1673531072745,20.0,15.986,15.96,25.036237]
[1673531073067,20.0,15.984,15.961,15.02270016]
[1673531073275,20.0,15.984,15.961,14.02270016]
[1673531073494,20.0,15.986,15.96,46.966237]
[1673531073679,7.22282,15.995,15.964,32.18162173]
[1673531073889,110.0623,15.992,15.965,0.96]
[1673531074112,110.0623,15.992,15.965,16.94270016]
[1673531074331,110.0623,15.992,15.966,52.02270016]
[1673531074747,110.0623,15.992,15.967,15.02270016]
[1673531074964,110.0623,15.992,15.969,20.0]
[1673531075174,20.0,15.991,15.97,20.0]
[1673531075381,20.0,15.998,15.97,20.0]
[1673531075382,286.57148226,16.021,15.971,18.92]
[1673531075584,117.7615,16.0,15.972,7.22418]
[1673531075805,117.7615,16.0,15.972,42.24688016]
[1673531076008,20.0,15.999,15.973,18.92]
[1673531076216,20.0,15.999,15.974,20.0]
[1673531076437,20.0,15.999,15.975,0.96]
[1673531076629,20.0,15.999,15.976,0.96]
[1673531076839,20.0,15.999,15.977,0.96]
[1673531077049,20.0,15.999,15.978,0.96]
[1673531077270,20.0,15.999,15.979,0.96]
[1673531077487,20.0,16.003,15.979,35.92612356]
[1673531077694,66.86,16.007,15.98,22.77]
[1673531077889,20.0,16.01,15.981,20.96]
[1673531078327,111.844,16.011,15.982,15.92612356]
[1673531078328,46.85,16.011,15.982,15.92612356]
[1673531078536,20.0,16.014,15.983,20.0]
[1673531078753,46.83,16.019,15.984,0.96]
[1673531079065,20.0,16.018,15.991,20.0]
[1673531079275,46.8,16.027,15.992,20.0]
[1673531079594,20.0,16.026,15.993,7.21469]
[1673531079790,46.81,16.025,15.994,0.96]
[1673531080113,20.0,16.026,15.995,7.21379]
[1673531080331,54.03282,16.025,15.996,20.96]
[1673531080515,54.03282,16.025,15.996,36.88612356]
[1673531080722,46.81,16.025,16.0,22.06]
[1673531080956,20.0,16.026,16.001,0.96]
[1673531081154,20.0,16.026,16.002,0.96]
[1673531081355,20.0,16.024,16.002,15.92612356]
[1673531081562,20.0,16.024,16.003,35.92612356]
[1673531081775,20.0,16.024,16.004,0.96]
[1673531082007,20.0,16.024,16.004,30.89224712]
[1673531082322,0.96,16.023,16.005,34.96612356]
[1673531082514,20.0,16.024,16.006,0.92295]
[1673531082724,20.0,16.022,16.006,14.96612356]
[1673531082946,20.0,16.02,16.005,20.0]
[1673531083273,20.0,16.02,16.003,14.96612356]
[1673531083459,20.0,16.02,16.004,20.0]
[1673531083670,1.92,16.019,16.004,20.0]
[1673531083895,1.92,16.019,16.004,34.96612356]
[1673531084107,18.92,16.019,15.99,22.16]
[1673531084422,1.92,16.019,15.99,53.38872611]
[1673531084632,0.96,16.019,15.991,14.96612356]
[1673531084943,20.0,16.018,15.991,22.18171356]
[1673531085153,20.0,16.018,15.992,20.0]
[1673531085358,20.0,16.018,15.993,0.96]
[1673531085566,20.0,16.018,15.994,0.96]
[1673531085772,20.0,16.018,15.994,20.96]
[1673531085999,18.92,16.017,15.994,34.22799041]
[1673531086217,18.92,16.017,15.994,33.26799041]
[1673531086398,46.84,16.016,15.995,13.26799041]
[1673531086605,66.84,16.016,15.995,13.26799041]
[1673531086818,18.92,16.015,15.995,13.26799041]
[1673531087030,20.0,16.014,15.995,13.26799041]
[1673531087465,20.0,16.014,15.985,117.0561]
[1673531087678,20.0,16.014,15.986,33.26799041]
[1673531088081,46.84,16.013,15.986,33.26799041]
[1673531088290,1.92,16.012,15.987,13.26799041]
[1673531088506,17.96,16.012,15.987,13.26799041]
[1673531088734,112.4887,16.011,15.987,13.26799041]
[1673531088949,20.0,16.01,15.987,13.26799041]
[1673531089133,20.0,16.01,15.988,20.0]
[1673531089337,20.0,16.01,15.987,13.26799041]
[1673531089568,20.0,16.01,15.989,13.26799041]
[1673531089772,20.0,16.01,15.989,33.26799041]
[1673531089978,20.0,16.01,15.989,20.0]
[1673531090193,20.0,16.01,15.99,13.26799041]
[1673531090405,20.0,16.01,15.991,20.0]
[1673531090817,20.0,16.01,15.992,13.26799041]
[1673531091233,20.0,16.01,15.993,20.0]
[1673531091445,20.0,16.01,15.994,0.96]
[1673531091654,20.0,16.01,15.994,14.22799041]
[1673531091870,20.0,16.01,15.995,14.22799041]
[1673531092082,20.0,16.01,15.996,37.96]
[1673531092291,1.92,16.009,15.996,20.0]
[1673531092522,1.92,16.009,15.985,148.28482611]
[1673531092709,20.0,16.01,15.986,13.26799041]
[1673531093127,1.92,16.009,15.986,13.26799041]
[1673531093336,18.92,16.009,15.986,13.26799041]
[1673531093775,1.92,16.009,15.986,13.26799041]
[1673531094093,132.4887,16.011,15.986,13.33332237]
[1673531094290,20.0,16.013,15.987,20.0]
[1673531094499,154.1328,16.02,15.987,20.0]
[1673531094500,112.0728,16.02,15.988,7.21695]
[1673531094709,112.0728,16.02,15.99,130.95]
[1673531094925,20.0,16.019,15.991,44.21559]
[1673531095248,20.0,16.019,15.992,7.21514]
[1673531095444,20.0,16.019,15.993,20.0]
[1673531095981,20.0,16.019,15.988,117.3681]
[1673531095982,20.0,16.017,15.988,117.3681]
[1673531096196,20.0,16.017,15.98,22.18]
[1673531096197,75.02282,16.016,15.98,22.18]
[1673531096403,92.98282,16.016,15.987,13.33332237]
[1673531096593,7.22282,16.015,15.987,13.33332237]
[1673531096803,20.0,16.013,15.987,13.33332237]
[1673531097014,54.07282,16.012,15.987,13.33332237]
[1673531097334,0.96,16.011,15.987,13.33332237]
[1673531097544,112.8226,16.011,15.987,13.33332237]
[1673531097762,111.8626,16.011,15.987,13.33332237]
[1673531098086,111.8626,16.011,15.984,52.18162173]
[1673531098404,20.0,16.013,15.985,64.56204848]
[1673531098595,20.0,16.013,15.99,22.08]
[1673531098801,20.0,16.016,15.992,20.0]
[1673531099024,46.83,16.019,15.993,20.0]
[1673531099223,112.0728,16.02,15.994,1.92]
[1673531099432,46.82,16.022,16.0,22.19]
[1673531099655,46.8,16.027,16.001,20.96]
[1673531099867,20.0,16.026,16.002,20.96]
[1673531100074,20.0,16.026,16.003,0.96]
[1673531100288,20.0,16.026,16.003,34.29332237]
[1673531100589,20.0,16.026,16.004,14.29332237]
[1673531100798,46.79,16.031,16.005,40.96]
[1673531101009,162.0294,16.037,16.005,71.29332237]
[1673531101218,162.0294,16.037,16.006,13.33332237]
[1673531101445,162.0294,16.037,16.006,14.29332237]
[1673531101647,46.77,16.037,16.01,44.25]
[1673531101850,24.945414,16.04,16.01,44.25]
[1673531101851,24.945414,16.04,16.011,29.12658]
[1673531102067,24.945414,16.04,16.012,7.20613]
[1673531102270,24.945414,16.04,16.02,22.19]
[1673531102481,24.945414,16.04,16.021,20.96]
[1673531102685,182.0094,16.046,16.022,20.0]
[1673531102902,46.74,16.049,16.023,0.96]
[1673531103113,46.74,16.049,16.024,0.96]
[1673531103319,174.742965,16.05,16.024,0.96]
[1673531103320,174.742965,16.05,16.025,8.16028]
[1673531103547,174.742965,16.05,16.026,27.19983]
[1673531103741,174.742965,16.05,16.027,8.15938]
[1673531103952,174.742965,16.05,16.04,22.08]
[1673531104168,0.002965,16.05,16.041,20.96]
[1673531105122,24.923546,16.057,16.042,33.33332237]
[1673531105344,24.923546,16.057,16.043,20.0]
[1673531105652,24.923546,16.057,16.044,44.19176]
[1673531105844,24.923546,16.057,16.045,0.96]
[1673531106054,24.923546,16.057,16.045,1.92]
[1673531106397,24.923546,16.057,16.044,30.32021014]
[1673531106708,24.923546,16.057,16.045,13.32021014]
[1673531107646,24.923546,16.057,16.03,22.12]
[1673531107866,20.0,16.056,16.035,13.32021014]
[1673531108178,46.72,16.056,16.031,53.75072611]
[1673531108385,24.923546,16.057,16.035,33.75072611]
[1673531108704,20.0,16.056,16.036,20.0]
[1673531108897,24.923546,16.057,16.036,13.32021014]
[1673531109228,24.923546,16.057,16.04,22.04]
[1673531109539,0.003546,16.057,16.041,20.0]
[1673531109747,0.003546,16.057,16.042,20.0]
[1673531109967,0.003546,16.057,16.043,20.0]
[1673531110272,0.003546,16.057,16.05,21.93]
[1673531110488,46.66,16.078,16.05,44.03]
[1673531110681,20.0,16.081,16.051,48.14862]
[1673531110885,20.0,16.081,16.06,22.03]
[1673531111220,46.64,16.082,16.061,20.0]
[1673531111412,46.62,16.089,16.061,33.32021014]
[1673531111622,110.7526,16.092,16.07,22.04]
[1673531111832,20.0,16.091,16.071,20.0]
[1673531112058,20.0,16.091,16.071,13.32021014]
[1673531112257,46.62,16.09,16.068,13.32021014]
[1673531112456,46.62,16.09,16.05,42.1]
[1673531112457,46.62,16.09,16.069,20.0]
[1673531112685,20.0,16.089,16.069,20.0]
[1673531112893,46.63,16.088,16.07,13.32021014]
[1673531113108,46.62,16.09,16.071,20.0]
[1673531113517,46.61,16.095,16.073,20.0]
[1673531113723,24.868092,16.096,16.074,20.0]
[1673531114059,24.868092,16.096,16.074,46.64042028]
[1673531114377,24.868092,16.096,16.075,13.32021014]
[1673531114558,24.868092,16.096,16.081,20.0]
[1673531114774,24.868092,16.096,16.082,20.96]
[1673531115005,24.868092,16.096,16.082,20.0]
[1673531115199,4.868092,16.096,16.083,0.96]
[1673531115421,0.008092,16.096,16.083,14.28021014]
[1673531115622,0.008092,16.096,16.084,33.32021014]
[1673531115945,0.008092,16.096,16.085,13.32021014]
[1673531116156,87.91,16.13,16.086,20.0]
[1673531116157,46.54,16.118,16.086,20.0]
[1673531116366,111.15,16.127,16.1,22.03]
[1673531116367,7.22282,16.117,16.1,22.03]
[1673531116775,7.22282,16.117,16.101,53.32021014]
[1673531117198,7.22282,16.117,16.101,40.0]
[1673531117620,20.0,16.125,16.091,20.0]
[1673531117835,19.14496728,16.121,16.092,7.1703]
[1673531118153,46.53,16.12,16.092,7.1703]
[1673531118368,107.58729021,16.12,16.093,13.32021014]
[1673531118578,20.0,16.119,16.093,13.32021014]
[1673531118780,46.54,16.118,16.081,20.0]
[1673531118974,20.0,16.117,16.082,7.17476]
[1673531119189,53.76282,16.116,16.09,13.32021014]
[1673531119400,7.22282,16.115,16.091,20.0]
[1673531119623,20.0,16.113,16.091,20.0]
[1673531119831,53.78282,16.112,16.091,20.0]
[1673531120036,7.22282,16.111,16.086,13.32021014]
[1673531120261,46.56,16.11,16.087,20.0]
[1673531120469,21.87,16.1,16.061,118.1395]
[1673531120686,21.87,16.1,16.068,7.18101]
[1673531120687,86.59,16.099,16.068,7.18101]
[1673531120892,105.51,16.099,16.069,13.32021014]
[1673531121091,19.14496728,16.098,16.07,7.18012]
[1673531121295,47.56,16.097,16.07,7.18012]
[1673531121504,20.0,16.096,16.071,13.32607109]
[1673531121722,1.20541642,16.094,16.072,7.17923]
[1673531122033,20.0,16.119,16.072,74.07001258]
[1673531122243,7.22282,16.118,16.08,110.29]
[1673531122462,7.22282,16.118,16.091,20.0]
[1673531122681,7.22282,16.118,16.092,20.0]
[1673531122992,7.22282,16.118,16.092,33.32607109]
[1673531123184,7.22282,16.118,16.093,13.32607109]
[1673531123392,7.22282,16.118,16.094,20.0]
[1673531123610,7.22282,16.118,16.094,93.96614307]
[1673531123611,20.0,16.117,16.094,93.96614307]
[1673531123932,22.04,16.11,16.094,20.0]
[1673531124143,53.79282,16.109,16.092,20.0]
[1673531124356,7.22282,16.108,16.081,20.0]
[1673531124564,66.57,16.107,16.087,14.40038736]
[1673531124764,8.18282,16.106,16.088,20.0]
[1673531124984,54.76282,16.105,16.088,20.0]
[1673531125288,7.22282,16.104,16.088,34.40038736]
[1673531125495,7.22282,16.104,16.09,22.03]
[1673531125705,7.22282,16.103,16.092,20.0]
[1673531125919,46.5,16.13,16.092,20.0]
[1673531126131,46.5,16.13,16.093,56.32872013]
[1673531126358,46.52,16.123,16.094,20.0]
[1673531126551,20.0,16.122,16.094,34.40038736]
[1673531126763,46.53,16.121,16.095,69.89490949]
[1673531126975,46.53,16.121,16.096,20.0]
[1673531127183,0.96,16.12,16.096,20.0]
[1673531127399,20.0,16.118,16.097,7.16808]
[1673531127618,20.0,16.118,16.098,20.0]
[1673531127938,46.54,16.117,16.099,7.16719]
[1673531128146,20.0,16.116,16.099,7.16719]
[1673531128458,20.0,16.114,16.08,22.05]
[1673531128670,47.51,16.113,16.081,7.17521]
[1673531128876,22.0,16.11,16.081,7.17521]
[1673531129086,46.57,16.109,16.081,7.17521]
[1673531129411,20.0,16.099,16.081,7.17521]
[1673531129619,46.6,16.098,16.081,7.17521]
[1673531129822,46.6,16.098,16.07,22.1]
[1673531130138,0.96,16.097,16.071,7.17967]
[1673531130329,20.0,16.095,16.071,7.17967]
[1673531130540,20.0,16.095,16.071,21.58005736]
[1673531130781,0.96,16.094,16.071,7.17967]
[1673531130960,46.59,16.102,16.071,21.58005736]
[1673531131176,46.57,16.106,16.072,44.48785546]
[1673531131381,20.0,16.1,16.073,7.17878]
[1673531131594,20.0,16.1,16.073,21.57916736]
[1673531131595,46.59,16.099,16.073,21.57916736]
[1673531131804,46.59,16.099,16.074,14.40038736]
[1673531132027,46.59,16.099,16.075,7.17789]
[1673531132232,1.92,16.098,16.075,7.17789]
[1673531132447,46.59,16.1,16.076,34.40038736]
[1673531132661,20.0,16.106,16.076,34.40038736]
[1673531132662,46.58,16.104,16.077,7.17699]
[1673531132872,46.58,16.105,16.077,21.57737736]
[1673531133084,46.58,16.105,16.078,13.9759492]
[1673531133288,46.58,16.105,16.079,8.1361]
[1673531133621,46.58,16.105,16.08,21.1516092]
[1673531133839,46.59,16.1,16.081,7.17521]
[1673531134041,46.59,16.1,16.071,47.17452213]
[1673531134362,20.0,16.099,16.075,13.9759492]
[1673531134565,20.0,16.099,16.06,21.85]
[1673531134566,22.04,16.09,16.076,7.17744]
[1673531134760,47.58,16.089,16.076,7.17744]
[1673531134972,65.54,16.089,16.062,47.17452213]
[1673531135192,20.0,16.088,16.063,7.18325]
[1673531135397,46.63,16.087,16.063,7.18325]
[1673531135617,46.63,16.088,16.064,13.9759492]
[1673531135824,17.0,16.087,16.064,13.9759492]
[1673531136024,46.62,16.091,16.064,13.9759492]
[1673531136448,150.18,16.09,16.052,20.0]
[1673531136752,150.18,16.09,16.065,0.00452213]
[1673531136753,46.62,16.089,16.065,0.00452213]
[1673531136973,65.76496728,16.089,16.053,7.18772]
[1673531137197,1.13328469,16.087,16.053,0.00772]
[1673531137386,40.10496728,16.088,16.03,22.13]
[1673531137387,21.13328469,16.085,16.031,7.19759]
[1673531137592,1.28485474,16.083,16.031,7.19759]
[1673531137809,1.28485474,16.081,16.031,21.1735392]
[1673531138031,53.87282,16.08,16.032,13.9759492]
[1673531138250,46.14282,16.079,16.033,7.19669]
[1673531138460,66.65,16.078,16.033,7.19669]
[1673531138672,45.18282,16.077,16.034,13.9759492]
[1673531138984,54.84282,16.076,16.034,13.9759492]
[1673531139175,54.84282,16.076,16.034,21.1721892]
[1673531139176,45.18282,16.075,16.034,21.1721892]
[1673531139525,20.0,16.073,16.035,7.19579]
[1673531139723,83.67,16.072,16.035,7.19579]
[1673531139912,116.049,16.071,16.036,13.9759492]
[1673531140123,66.68,16.07,16.036,13.9759492]
[1673531140338,20.0,16.069,16.036,13.9759492]
[1673531140553,1.28771631,16.067,16.037,7.1949]
[1673531140764,46.69,16.066,16.037,7.1949]
[1673531140971,137.971,16.065,16.037,7.1949]
[1673531141185,46.7,16.064,16.037,7.1949]
[1673531141400,57.96,16.063,16.022,39.9387828]
[1673531141718,47.66,16.062,16.023,7.20118]
[1673531141910,20.0,16.06,16.023,21.1771292]
[1673531142119,200.719,16.059,16.024,47.9518984]
[1673531142328,20.0,16.058,16.025,20.0]
[1673531142662,20.0,16.063,16.026,20.0]
[1673531142846,20.0,16.063,16.026,41.1757792]
[1673531143063,46.7,16.062,16.027,21.1753292]
[1673531143285,20.0,16.061,16.029,20.0]
[1673531143485,46.71,16.06,16.03,28.15804]
[1673531143699,46.71,16.06,16.03,42.1339892]
[1673531144008,46.71,16.06,16.031,36.1094884]
[1673531144221,20.0,16.058,16.032,20.0]
[1673531144430,17.0,16.057,16.033,0.96]
[1673531144659,17.0,16.057,16.033,7.19669]
[1673531144860,46.72,16.056,16.034,7.19624]
[1673531145068,20.0,16.054,16.035,20.0]
[1673531145496,0.96,16.053,16.035,20.0]
[1673531145827,46.7,16.064,16.036,0.96]
[1673531146009,53.92282,16.062,16.037,0.96]
[1673531146218,134.2743,16.083,16.037,0.96]
[1673531146219,7.22282,16.061,16.037,20.0]
[1673531146443,7.22282,16.061,16.038,21.92]
[1673531146757,7.22282,16.061,16.039,20.0]
[1673531146758,46.71,16.06,16.039,20.0]
[1673531146972,7.22282,16.059,16.039,33.9759492]
[1673531147173,7.22282,16.059,16.04,0.96]
[1673531147581,7.22282,16.059,16.032,62.20486161]
[1673531147794,7.22282,16.059,16.032,20.0]
[1673531148003,20.0,16.062,16.032,20.0]
[1673531148233,20.0,16.06,16.032,20.0]
[1673531148549,7.22282,16.059,16.032,33.9759492]
[1673531149283,7.22282,16.059,16.034,20.0]
[1673531149486,7.22282,16.059,16.035,0.96]
[1673531149701,7.22282,16.059,16.036,20.0]
[1673531150020,7.22282,16.059,16.037,0.96]
[1673531151889,53.94282,16.057,16.026,110.9631]
[1673531152098,20.0,16.055,16.029,20.0]
[1673531152304,7.22282,16.054,16.029,20.0]
[1673531152530,7.22282,16.054,16.03,44.21882517]
[1673531152743,7.22282,16.054,16.04,22.01]
[1673531153271,7.22282,16.054,16.041,20.0]